[Event "CZE Extraliga 2019-20"]
[Site "Czech Republic"]
[Date "2019.11.30"]
[Round "3.1"]
[White "Korobov, Anton"]
[Black "Kociscak, Jiri"]
[Result "1/2-1/2"]
[ECO "D40"]
[WhiteElo "2679"]
[BlackElo "2499"]
[Annotator "ChessBase"]
[PlyCount "79"]
[EventDate "2019.09.15"]
[EventType "team-tourn"]
[EventCountry "CZE"]
[SourceTitle "playchess.com"]
[Source "ChessBase"]
[SourceQuality "1"]
[WhiteTeam "Frydek-Mistek"]
[BlackTeam "Ostrava"]
[TimeControl "40/5400+30:1800+30"]

1. d4 {[%emt 0:00:00]} d5 {[%emt 0:01:06]} 2. c4 {[%emt 0:00:00]} e6 {[%emt 0:00:04]} 3. Nc3 {[%emt 0:00:00]} c5 {[%emt 0:00:06]} 4. e3 {[%emt 0:01:01]} Nf6 {[%emt 0:01:50]} 5. Nf3 {[%emt 0:00:07]} Nc6 {[%emt 0:00:05]} 6. a3 {[%emt 0:00:08]} a6 {[%emt 0:01:06]} 7. b3 {[%emt 0:00:09]} Bd6 {[%emt 0:12:06]} 8. Bb2 {[%emt 0:02:37]} O-O {[%emt 0:04:29]} 9. dxc5 {[%emt 0:09:01]} Bxc5 {[%emt 0:00:14]} 10. Bd3 {[%emt 0:00:07]} Ba7 {[%emt 0:15:29]} 11. O-O {[%emt 0:03:24]} Qe7 {[%emt 0:04:16]} 12. cxd5 {[%emt 0:12:19]} exd5 {[%emt 0:00:06]} 13. h3 {[%emt 0:00:04]} Bd7 {[%emt 0:06:04]} 14. Ne2 {[%emt 0:03:36]} Rad8 {[%emt 0:00:57]} 15. b4 {[%emt 0:02:12]} Rfe8 {[%emt 0:07:57]} 16. Rc1 {[%emt 0:02:54]} h6 {[%emt 0:06:47]} 17. Ned4 {[%emt 0:03:19]} Bb8 {[%emt 0:00:14]} 18. Nxc6 {[%emt 0:08:50]} Bxc6 {[%emt 0:00:08]} 19. Qb3 {[%emt 0:01:31]} Ne4 {[%emt 0:07:49]} 20. Rfd1 {[%emt 0:02:00]} Qc7 {[%emt 0:08:54]} 21. h4 {[%emt 0:24:03]} Qd7 {[%emt 0:14:03]} 22. Bxe4 {[%emt 0:01:41]} Rxe4 {[%emt 0:00:05]} 23. Rd4 {[%emt 0:00:17]} Qe7 {[%emt 0:01:20]} 24. a4 {[%emt 0:02:27]} Qe8 {[%emt 0:00:31]} 25. b5 {[%emt 0:06:34]} axb5 {[%emt 0:00:23]} 26. axb5 {[%emt 0:00:02]} Bxb5 {[%emt 0:02:36]} 27. Rxd5 {[%emt 0:00:01]} Rxd5 {[%emt 0:01:06]} 28. Qxd5 {[%emt 0:00:02]} Bc6 {[%emt 0:00:06]} 29. Qf5 {[%emt 0:00:59]} Bd7 {[%emt 0:02:19]} 30. Qa5 {[%emt 0:02:14]} Kh7 {[%emt 0:01:43]} 31. Rd1 {[%emt 0:01:33]} f6 {[%emt 0:00:49]} 32. h5 {[%emt 0:02:17]} Be5 {[%emt 0:00:28]} 33. Bxe5 {[%emt 0:04:06]} fxe5 {[%emt 0:00:04]} 34. Qc7 {[%emt 0:00:51]} Bg4 {[%emt 0:01:00]} 35. Rd8 {[%emt 0:02:26]} Qxh5 {[%emt 0:00:17]} 36. Nd2 {[%emt 0:00:17]} Rb4 {[%emt 0:00:45]} 37. Qb8 {[%emt 0:01:56]} Be6 {[%emt 0:00:07]} 38. Rh8+ {[%emt 0:02:41]} Kg6 {[%emt 0:00:04]} 39. Rf8 {[%emt 0:00:56]} Rb1+ {[%emt 0:00:58]} 40. Nxb1 {[%emt 0:00:05]} 1/2-1/2

[Event "CZE Extraliga 2019-20"]
[Site "Czech Republic"]
[Date "2019.11.30"]
[Round "3.1"]
[White "Nabaty, Tamir"]
[Black "Saric, Ivan"]
[Result "0-1"]
[ECO "B07"]
[WhiteElo "2658"]
[BlackElo "2667"]
[Annotator "ChessBase"]
[PlyCount "122"]
[EventDate "2019.09.15"]
[EventType "team-tourn"]
[EventCountry "CZE"]
[SourceTitle "playchess.com"]
[Source "ChessBase"]
[SourceQuality "1"]
[WhiteTeam "Lysa nad Labem"]
[BlackTeam "Brno"]
[TimeControl "40/5400+30:1800+30"]

1. d4 {[%emt 0:00:00]} Nf6 {[%emt 0:00:00]} 2. Nf3 {[%emt 0:00:00]} g6 {[%emt 0:02:01]} 3. Nbd2 {[%emt 0:00:02]} Bg7 {[%emt 0:04:47]} 4. e4 {[%emt 0:00:17]} d6 {[%emt 0:00:07]} 5. c3 {[%emt 0:01:18]} O-O {[%emt 0:00:07]} 6. a4 {[%emt 0:00:21]} e5 {[%emt 0:06:45]} 7. dxe5 {[%emt 0:01:35]} dxe5 {[%emt 0:00:17]} 8. Qc2 {[%emt 0:07:24]} Qe7 {[%emt 0:05:53]} 9. b3 {[%emt 0:04:54]} Rd8 {[%emt 0:05:01]} 10. Ba3 {[%emt 0:01:19]} c5 {[%emt 0:00:40]} 11. Bc4 {[%emt 0:02:29]} Nc6 {[%emt 0:07:34]} 12. O-O {[%emt 0:02:21]} Bd7 {[%emt 0:09:21]} 13. Rfd1 {[%emt 0:09:17]} Bh6 {[%emt 0:02:20]} 14. Be2 {[%emt 0:04:06]} Nh5 {[%emt 0:08:32]} 15. g3 {[%emt 0:01:58]} Nf6 {[%emt 0:07:50]} 16. Nc4 {[%emt 0:04:38]} Bg4 {[%emt 0:04:08]} 17. Kg2 {[%emt 0:07:59]} b6 {[%emt 0:00:49]} 18. h3 {[%emt 0:01:04]} Be6 {[%emt 0:01:57]} 19. Nh2 {[%emt 0:04:03]} Rxd1 {[%emt 0:01:27]} 20. Rxd1 {[%emt 0:00:16]} Rd8 {[%emt 0:00:22]} 21. Ng4 {[%emt 0:02:26]} Nxg4 {[%emt 0:01:06]} 22. hxg4 {[%emt 0:01:32]} Rd7 {[%emt 0:02:35]} 23. Rh1 {[%emt 0:08:11]} Bg5 {[%emt 0:05:51]} 24. Bc1 {[%emt 0:02:28]} Bxc1 {[%emt 0:01:21]} 25. Qxc1 {[%emt 0:00:06]} f6 {[%emt 0:02:14]} 26. Ne3 {[%emt 0:11:54]} Na5 {[%emt 0:00:53]} 27. Bc4 {[%emt 0:01:26]} Nxb3 {[%emt 0:05:48]} 28. Bxb3 {[%emt 0:00:41]} Bxb3 {[%emt 0:00:05]} 29. c4 {[%emt 0:00:11]} Bxa4 {[%emt 0:00:42]} 30. Nd5 {[%emt 0:02:54]} Qd8 {[%emt 0:00:17]} 31. g5 {[%emt 0:04:28]} fxg5 {[%emt 0:00:07]} 32. f4 {[%emt 0:03:59]} gxf4 {[%emt 0:01:28]} 33. gxf4 {[%emt 0:00:02]} exf4 {[%emt 0:01:01]} 34. Qa1 {[%emt 0:05:08]} Qg5+ {[%emt 0:00:31]} 35. Kf1 {[%emt 0:00:02]} f3 {[%emt 0:03:12]} 36. Rh2 {[%emt 0:01:20]} Rf7 {[%emt 0:01:25]} 37. e5 {[%emt 0:02:44]} Bd7 {[%emt 0:02:07]} 38. Nf6+ {[%emt 0:00:33]} Rxf6 {[%emt 0:00:48]} 39. exf6 {[%emt 0:00:02]} Qf4 {[%emt 0:02:55]} 40. f7+ {[%emt 0:03:41]} Qxf7 {[%emt 0:00:24]} 41. Qc1 {[%emt 0:05:08]} Be6 {[%emt 0:06:20]} 42. Rh4 {[%emt 0:00:52]} Qe7 {[%emt 0:05:38]} 43. Qe1 {[%emt 0:01:04]} Qd6 {[%emt 0:02:54]} 44. Kf2 {[%emt 0:03:59]} g5 {[%emt 0:05:56]} 45. Re4 {[%emt 0:01:45]} Qh2+ {[%emt 0:02:47]} 46. Kxf3 {[%emt 0:00:03]} Kf7 {[%emt 0:04:53]} 47. Ke3 {[%emt 0:09:53]} Bf5 {[%emt 0:01:17]} 48. Qf1 {[%emt 0:00:02]} Qg3+ {[%emt 0:03:45]} 49. Kd2 {[%emt 0:01:47]} Qd6+ {[%emt 0:00:22]} 50. Ke1 {[%emt 0:03:06]} Qf6 {[%emt 0:00:29]} 51. Re3 {[%emt 0:00:01]} Qa1+ {[%emt 0:00:19]} 52. Kf2 {[%emt 0:00:02]} Qxf1+ {[%emt 0:00:27]} 53. Kxf1 {[%emt 0:00:02]} Be6 {[%emt 0:00:23]} 54. Rc3 {[%emt 0:01:04]} Ke7 {[%emt 0:03:10]} 55. Ke2 {[%emt 0:00:29]} Kd6 {[%emt 0:00:19]} 56. Kd3 {[%emt 0:00:24]} h5 {[%emt 0:00:17]} 57. Ra3 {[%emt 0:02:24]} a5 {[%emt 0:00:04]} 58. Rb3 {[%emt 0:00:42]} Kc6 {[%emt 0:00:06]} 59. Rb2 {[%emt 0:00:04]} h4 {[%emt 0:00:22]} 60. Rf2 {[%emt 0:00:22]} g4 {[%emt 0:01:03]} 61. Rf6 {[%emt 0:00:26]} Kd6 {[%emt 0:00:08] Kd4 Ke5+} 0-1

[Event "CZE Extraliga 2019-20"]
[Site "Czech Republic"]
[Date "2019.11.30"]
[Round "3.1"]
[White "Markos, Jan"]
[Black "Kempinski, Robert"]
[Result "1/2-1/2"]
[ECO "A50"]
[WhiteElo "2572"]
[BlackElo "2579"]
[Annotator "ChessBase"]
[PlyCount "30"]
[EventDate "2019.09.15"]
[EventType "team-tourn"]
[EventCountry "CZE"]
[SourceTitle "playchess.com"]
[Source "ChessBase"]
[SourceQuality "1"]
[WhiteTeam "Kromeriz"]
[BlackTeam "Poruba"]
[TimeControl "40/5400+30:1800+30"]

1. d4 {[%emt 0:00:00]} Nf6 {[%emt 0:00:06]} 2. c4 {[%emt 0:00:00]} c6 {[%emt 0:00:51]} 3. Nc3 {[%emt 0:00:38]} d5 {[%emt 0:00:11]} 4. e3 {[%emt 0:00:17]} g6 {[%emt 0:01:22]} 5. Nf3 {[%emt 0:01:32]} Bg7 {[%emt 0:00:08]} 6. Bd3 {[%emt 0:03:48]} O-O {[%emt 0:01:51]} 7. h3 {[%emt 0:00:12]} a6 {[%emt 0:02:33]} 8. a4 {[%emt 0:06:56]} c5 {[%emt 0:08:01]} 9. dxc5 {[%emt 0:10:31]} dxc4 {[%emt 0:11:43]} 10. Bxc4 {[%emt 0:00:36]} Qxd1+ {[%emt 0:00:40]} 11. Kxd1 {[%emt 0:00:13]} Nbd7 {[%emt 0:00:31]} 12. Ke2 {[%emt 0:07:30]} Nxc5 {[%emt 0:01:05]} 13. Rd1 {[%emt 0:05:32]} Bd7 {[%emt 0:15:00]} 14. Ne5 {[%emt 0:10:43]} Bf5 {[%emt 0:06:59]} 15. Nd3 {[%emt 0:00:56]} Bxd3+ {[%emt 0:11:19]} 1/2-1/2

[Event "CZE Extraliga 2019-20"]
[Site "Czech Republic"]
[Date "2019.11.30"]
[Round "3.2"]
[White "Balogh, Csaba"]
[Black "Plat, Vojtech"]
[Result "1/2-1/2"]
[ECO "B32"]
[WhiteElo "2587"]
[BlackElo "2576"]
[Annotator "ChessBase"]
[PlyCount "135"]
[EventDate "2019.09.15"]
[EventType "team-tourn"]
[EventCountry "CZE"]
[SourceTitle "playchess.com"]
[Source "ChessBase"]
[SourceQuality "1"]
[WhiteTeam "Brno"]
[BlackTeam "Lysa nad Labem"]
[TimeControl "40/5400+30:1800+30"]

1. e4 {[%emt 0:00:00]} c5 {[%emt 0:00:05]} 2. Nf3 {[%emt 0:00:00]} Nc6 {[%emt 0:00:03]} 3. d4 {[%emt 0:04:09]} cxd4 {[%emt 0:00:07]} 4. Nxd4 {[%emt 0:00:03]} e5 {[%emt 0:00:04]} 5. Nb5 {[%emt 0:00:14]} a6 {[%emt 0:00:04]} 6. Nd6+ {[%emt 0:00:33]} Bxd6 {[%emt 0:00:04]} 7. Qxd6 {[%emt 0:00:07]} Qf6 {[%emt 0:00:02]} 8. Qxf6 {[%emt 0:33:42]} Nxf6 {[%emt 0:00:05]} 9. Nc3 {[%emt 0:00:08]} Nb4 {[%emt 0:00:18]} 10. Kd2 {[%emt 0:04:39]} d6 {[%emt 0:00:08]} 11. b3 {[%emt 0:09:34]} Be6 {[%emt 0:02:56]} 12. Ba3 {[%emt 0:02:02]} Nc6 {[%emt 0:00:12]} 13. f3 {[%emt 0:05:15]} O-O-O {[%emt 0:01:26]} 14. Rd1 {[%emt 0:01:00]} d5 {[%emt 0:08:09]} 15. exd5 {[%emt 0:00:50]} Nxd5 {[%emt 0:00:05]} 16. Nxd5 {[%emt 0:00:42]} Rxd5+ {[%emt 0:05:44]} 17. Kc1 {[%emt 0:00:07]} Rxd1+ {[%emt 0:01:06]} 18. Kxd1 {[%emt 0:00:05]} Bf5 {[%emt 0:03:06]} 19. Kc1 {[%emt 0:02:10]} Rd8 {[%emt 0:06:48]} 20. Bc4 {[%emt 0:07:58]} Nd4 {[%emt 0:01:58]} 21. c3 {[%emt 0:06:45]} b5 {[%emt 0:03:06]} 22. cxd4 {[%emt 0:14:47]} bxc4 {[%emt 0:00:05]} 23. dxe5 {[%emt 0:01:18]} Rd3 {[%emt 0:01:10]} 24. Re1 {[%emt 0:04:01]} Rc3+ {[%emt 0:02:04]} 25. Kd1 {[%emt 0:00:07]} cxb3 {[%emt 0:00:31]} 26. axb3 {[%emt 0:00:03]} Rxb3 {[%emt 0:00:07]} 27. Bc1 {[%emt 0:00:35]} a5 {[%emt 0:01:02]} 28. Re3 {[%emt 0:00:03]} Rb5 {[%emt 0:00:06]} 29. Ba3 {[%emt 0:01:37]} Kd7 {[%emt 0:01:15]} 30. f4 {[%emt 0:00:58]} a4 {[%emt 0:01:20]} 31. Kd2 {[%emt 0:00:06]} Rd5+ {[%emt 0:00:43]} 32. Kc3 {[%emt 0:00:52]} Ke6 {[%emt 0:00:28]} 33. g3 {[%emt 0:00:31]} Rd1 {[%emt 0:03:20]} 34. Bf8 {[%emt 0:00:12]} Rb1 {[%emt 0:01:09]} 35. Kd4 {[%emt 0:00:22]} Rb8 {[%emt 0:01:44]} 36. Bd6 {[%emt 0:00:32]} Rb2 {[%emt 0:01:29]} 37. Ra3 {[%emt 0:01:06]} Re2 {[%emt 0:00:25]} 38. h4 {[%emt 0:00:46]} Bc2 {[%emt 0:01:59]} 39. Re3 {[%emt 0:00:18]} Rg2 {[%emt 0:01:17]} 40. Rc3 {[%emt 0:00:55]} Kf5 {[%emt 0:04:17]} 41. h5 {[%emt 0:07:32]} Kg4 {[%emt 0:04:36]} 42. Bf8 {[%emt 0:00:20]} Kxh5 {[%emt 0:01:05]} 43. Bxg7 {[%emt 0:00:41]} Kg4 {[%emt 0:00:31]} 44. Bf6 {[%emt 0:02:37]} Bb3 {[%emt 0:01:30]} 45. Kc5 {[%emt 0:13:33]} Be6 {[%emt 0:06:36]} 46. Bh4 {[%emt 0:00:32]} Rb2 {[%emt 0:00:21]} 47. Ra3 {[%emt 0:02:52]} Bb3 {[%emt 0:00:37]} 48. Ra1 {[%emt 0:00:02]} Rd2 {[%emt 0:01:30]} 49. Kb4 {[%emt 0:00:28]} Rd3 {[%emt 0:00:58]} 50. Rc1 {[%emt 0:00:38]} Bd1 {[%emt 0:02:31]} 51. Rc3 {[%emt 0:00:58]} Rxc3 {[%emt 0:00:34]} 52. Kxc3 {[%emt 0:00:05]} a3 {[%emt 0:00:01]} 53. Be7 {[%emt 0:02:44]} Kxg3 {[%emt 0:02:39]} 54. f5 {[%emt 0:00:19]} a2 {[%emt 0:00:21]} 55. Kb2 {[%emt 0:00:04]} Bb3 {[%emt 0:00:07]} 56. e6 {[%emt 0:00:30]} Bxe6 {[%emt 0:00:04]} 57. fxe6 {[%emt 0:00:03]} fxe6 {[%emt 0:00:03]} 58. Bd6+ {[%emt 0:00:23]} Kf3 {[%emt 0:00:13]} 59. Kxa2 {[%emt 0:00:06]} h5 {[%emt 0:00:06]} 60. Kb3 {[%emt 0:00:06]} h4 {[%emt 0:00:06]} 61. Kc3 {[%emt 0:00:54]} Ke3 {[%emt 0:00:11]} 62. Kc2 {[%emt 0:02:25]} h3 {[%emt 0:00:31]} 63. Kd1 {[%emt 0:00:12]} Kf3 {[%emt 0:00:13]} 64. Kd2 {[%emt 0:00:17]} Kg2 {[%emt 0:00:03]} 65. Ke3 {[%emt 0:00:06]} h2 {[%emt 0:00:01]} 66. Bxh2 {[%emt 0:00:07]} Kxh2 {[%emt 0:00:01]} 67. Ke4 {[%emt 0:00:08]} e5 {[%emt 0:00:02]} 68. Kxe5 1/2-1/2

[Event "CZE Extraliga 2019-20"]
[Site "Czech Republic"]
[Date "2019.11.30"]
[Round "3.2"]
[White "Hracek, Zbynek"]
[Black "Pulpan, Jakub"]
[Result "0-1"]
[ECO "D35"]
[WhiteElo "2572"]
[BlackElo "2421"]
[Annotator "ChessBase"]
[PlyCount "70"]
[EventDate "2019.09.15"]
[EventType "team-tourn"]
[EventCountry "CZE"]
[SourceTitle "playchess.com"]
[Source "ChessBase"]
[SourceQuality "1"]
[WhiteTeam "Pardubice"]
[BlackTeam "Praha"]
[TimeControl "40/5400+30:1800+30"]

1. d4 {[%emt 0:00:00]} Nf6 {[%emt 0:00:00]} 2. c4 {[%emt 0:00:00]} e6 {[%emt 0:00:09]} 3. Nc3 {[%emt 0:00:00]} d5 {[%emt 0:00:22]} 4. cxd5 {[%emt 0:00:10]} Nxd5 {[%emt 0:00:24]} 5. e4 {[%emt 0:00:16]} Nxc3 {[%emt 0:00:07]} 6. bxc3 {[%emt 0:00:03]} c5 {[%emt 0:00:13]} 7. Rb1 {[%emt 0:00:14]} Be7 {[%emt 0:01:00]} 8. h4 {[%emt 0:00:14]} Nc6 {[%emt 0:17:22]} 9. Nf3 {[%emt 0:01:27]} cxd4 {[%emt 0:06:01]} 10. cxd4 {[%emt 0:03:06]} Bb4+ {[%emt 0:12:07]} 11. Bd2 {[%emt 0:00:20]} Bxd2+ {[%emt 0:00:35]} 12. Qxd2 {[%emt 0:00:03]} O-O {[%emt 0:01:20]} 13. h5 {[%emt 0:13:09]} h6 {[%emt 0:01:01]} 14. Bb5 {[%emt 0:20:46]} Na5 {[%emt 0:03:15]} 15. Rh3 {[%emt 0:18:13]} Kh8 {[%emt 0:13:40]} 16. Rg3 {[%emt 0:01:05]} a6 {[%emt 0:01:41]} 17. Bd3 {[%emt 0:00:18]} Bd7 {[%emt 0:05:32]} 18. d5 {[%emt 0:14:32]} exd5 {[%emt 0:07:32]} 19. Qc3 {[%emt 0:09:33]} f6 {[%emt 0:02:18]} 20. Nh4 {[%emt 0:03:40]} Re8 {[%emt 0:05:05]} 21. Ng6+ {[%emt 0:02:18]} Kg8 {[%emt 0:01:33]} 22. Nf4 {[%emt 0:08:16]} Rc8 {[%emt 0:04:10]} 23. Qd4 {[%emt 0:00:08]} dxe4 {[%emt 0:03:00]} 24. Be2 {[%emt 0:01:03]} Bf5 {[%emt 0:03:49]} 25. Qe3 {[%emt 0:01:34]} Kh7 {[%emt 0:02:15]} 26. Rd1 {[%emt 0:00:31]} Qc7 {[%emt 0:00:53]} 27. Bg4 {[%emt 0:01:49]} Bxg4 {[%emt 0:01:33]} 28. Rxg4 {[%emt 0:00:01]} Nc4 {[%emt 0:02:01]} 29. Qd4 {[%emt 0:00:06]} f5 {[%emt 0:03:14]} 30. Rg6 {[%emt 0:00:50]} Qe5 {[%emt 0:02:14]} 31. Qxe5 {[%emt 0:01:01]} Nxe5 {[%emt 0:00:06]} 32. Rb6 {[%emt 0:00:05]} Nd3+ {[%emt 0:00:20]} 33. Nxd3 {[%emt 0:00:05]} exd3+ {[%emt 0:00:01]} 34. Kf1 {[%emt 0:01:21]} Rc2 {[%emt 0:00:18]} 35. Rxb7 {[%emt 0:00:38]} Ree2 {[%emt 0:00:13]} 0-1

[Event "CZE Extraliga 2019-20"]
[Site "Czech Republic"]
[Date "2019.12.01"]
[Round "3.2"]
[White "Ponizil, Cyril"]
[Black "Laznicka, Viktor"]
[Result "1/2-1/2"]
[ECO "B48"]
[WhiteElo "2502"]
[BlackElo "2667"]
[Annotator "ChessBase"]
[PlyCount "30"]
[EventDate "2019.09.15"]
[EventType "team-tourn"]
[EventCountry "CZE"]
[SourceTitle "playchess.com"]
[Source "ChessBase"]
[SourceQuality "1"]
[WhiteTeam "Duras"]
[BlackTeam "Novoborsky"]
[WhiteTeamCountry "CZE"]
[BlackTeamCountry "CZE"]
[TimeControl "40/5400+30:1800+30"]

1. e4 {[%emt 0:00:00]} c5 {[%emt 0:00:00]} 2. Nf3 {[%emt 0:00:00]} e6 {[%emt 0:00:00]} 3. d4 {[%emt 0:00:00]} cxd4 {[%emt 0:00:00]} 4. Nxd4 {[%emt 0:00:00]} Nc6 {[%emt 0:00:00]} 5. Nc3 {[%emt 0:00:00]} a6 {[%emt 0:00:21]} 6. Be3 {[%emt 0:00:00]} Nf6 {[%emt 0:00:00]} 7. Bd3 {[%emt 0:00:35]} Qc7 {[%emt 0:00:00]} 8. O-O {[%emt 0:00:09]} Nxd4 {[%emt 0:00:13]} 9. Bxd4 {[%emt 0:00:05]} Bc5 {[%emt 0:00:04]} 10. Bxc5 {[%emt 0:00:59]} Qxc5 {[%emt 0:00:07]} 11. Qd2 {[%emt 0:00:19]} d6 {[%emt 0:00:55]} 12. Rae1 {[%emt 0:00:10]} e5 {[%emt 0:02:08]} 13. Re3 {[%emt 0:01:06]} Be6 {[%emt 0:00:49]} 14. Rd1 {[%emt 0:02:50]} O-O {[%emt 0:01:54]} 15. Be2 {[%emt 0:02:14]} Rfd8 {[%emt 0:20:59]} 1/2-1/2

[Event "CZE Extraliga 2019-20"]
[Site "Czech Republic"]
[Date "2019.11.30"]
[Round "3.2"]
[White "Jakubiec, Artur"]
[Black "Azarov, Sergei"]
[Result "1-0"]
[ECO "C50"]
[WhiteElo "2472"]
[BlackElo "2586"]
[Annotator "ChessBase"]
[PlyCount "61"]
[EventDate "2019.09.15"]
[EventType "team-tourn"]
[EventCountry "CZE"]
[SourceTitle "playchess.com"]
[Source "ChessBase"]
[SourceQuality "1"]
[WhiteTeam "Ostrava"]
[BlackTeam "Frydek-Mistek"]
[TimeControl "40/5400+30:1800+30"]

1. e4 {[%emt 0:00:00]} e5 {[%emt 0:00:00]} 2. Nf3 {[%emt 0:00:06]} Nc6 {[%emt 0:00:00]} 3. Bc4 {[%emt 0:00:11]} Bc5 {[%emt 0:00:15]} 4. O-O {[%emt 0:00:13]} Nf6 {[%emt 0:00:29]} 5. d3 {[%emt 0:00:04]} d6 {[%emt 0:00:35]} 6. a4 {[%emt 0:00:10]} a5 {[%emt 0:02:37]} 7. Be3 {[%emt 0:04:12]} Bxe3 {[%emt 0:18:58]} 8. fxe3 {[%emt 0:00:15]} Ne7 {[%emt 0:00:23]} 9. Nh4 {[%emt 0:07:55]} c6 {[%emt 0:05:45]} 10. Nc3 {[%emt 0:06:14]} O-O {[%emt 0:04:20]} 11. Qf3 {[%emt 0:22:41]} d5 {[%emt 0:04:10]} 12. Bb3 {[%emt 0:03:29]} Be6 {[%emt 0:02:15]} 13. Qg3 {[%emt 0:02:18]} Nd7 {[%emt 0:01:45]} 14. Nf5 {[%emt 0:02:49]} Bxf5 {[%emt 0:02:16]} 15. exf5 {[%emt 0:00:08]} Kh8 {[%emt 0:01:57]} 16. Kh1 {[%emt 0:02:03]} Ng8 {[%emt 0:18:28]} 17. e4 {[%emt 0:04:03]} d4 {[%emt 0:00:31]} 18. Nb1 {[%emt 0:05:48]} Qe7 {[%emt 0:01:23]} 19. Nd2 {[%emt 0:01:37]} Nc5 {[%emt 0:01:20]} 20. Bc4 {[%emt 0:07:05]} Nf6 {[%emt 0:03:14]} 21. Nf3 {[%emt 0:00:33]} Nfd7 {[%emt 0:04:29]} 22. Qh3 {[%emt 0:06:12]} b5 {[%emt 0:21:14]} 23. axb5 {[%emt 0:06:42]} Nb6 {[%emt 0:00:18]} 24. Ba2 {[%emt 0:00:15]} cxb5 {[%emt 0:00:21]} 25. g4 {[%emt 0:01:37]} Ncd7 {[%emt 0:03:39]} 26. g5 {[%emt 0:01:49]} Rfc8 {[%emt 0:01:13]} 27. Bxf7 {[%emt 0:02:12]} Nf8 {[%emt 0:00:21]} 28. Ba2 {[%emt 0:01:27]} Rxc2 {[%emt 0:00:59]} 29. f6 {[%emt 0:05:12]} Qc7 {[%emt 0:00:11]} 30. g6 {[%emt 0:03:17]} gxf6 {[%emt 0:00:12]} 31. Rg1 {[%emt 0:00:29]} 1-0

[Event "CZE Extraliga 2019-20"]
[Site "Czech Republic"]
[Date "2019.12.02"]
[Round "3.3"]
[White "Anton Guijarro, David"]
[Black "Blahynka, Martin"]
[Result "1-0"]
[ECO "C54"]
[WhiteElo "2686"]
[BlackElo "2414"]
[Annotator "ChessBase"]
[PlyCount "79"]
[EventDate "2019.09.15"]
[EventType "team-tourn"]
[EventCountry "CZE"]
[SourceTitle "playchess.com"]
[Source "ChessBase"]
[SourceQuality "1"]
[WhiteTeam "Novoborsky"]
[BlackTeam "Duras"]
[WhiteTeamCountry "ESP"]
[BlackTeamCountry "CZE"]
[TimeControl "40/5400+30:1800+30"]

1. e4 {[%emt 0:00:00]} e5 {[%emt 0:00:00]} 2. Nf3 {[%emt 0:00:07]} Nc6 {[%emt 0:00:10]} 3. Bc4 {[%emt 0:01:47]} Bc5 {[%emt 0:00:00]} 4. c3 {[%emt 0:02:32]} Nf6 {[%emt 0:00:00]} 5. d3 {[%emt 0:00:07]} O-O {[%emt 0:01:56]} 6. O-O {[%emt 0:00:25]} a6 {[%emt 0:04:49]} 7. Nbd2 {[%emt 0:03:35]} Ba7 {[%emt 0:06:21]} 8. h3 {[%emt 0:04:36]} d6 {[%emt 0:01:21]} 9. Bb3 {[%emt 0:01:05]} Ne7 {[%emt 0:03:06]} 10. Re1 {[%emt 0:04:07]} Ng6 {[%emt 0:01:05]} 11. Nf1 {[%emt 0:01:02]} h6 {[%emt 0:26:39]} 12. Ng3 {[%emt 0:06:42]} Be6 {[%emt 0:15:52]} 13. Bxe6 {[%emt 0:17:13]} fxe6 {[%emt 0:00:05]} 14. d4 {[%emt 0:00:26]} Qd7 {[%emt 0:09:11]} 15. Be3 {[%emt 0:05:35]} Qf7 {[%emt 0:04:41]} 16. dxe5 {[%emt 0:06:43]} Bxe3 {[%emt 0:02:46]} 17. Rxe3 {[%emt 0:00:14]} Nxe5 {[%emt 0:03:18]} 18. Nxe5 {[%emt 0:00:13]} dxe5 {[%emt 0:00:03]} 19. Qe2 {[%emt 0:06:23]} Rad8 {[%emt 0:02:45]} 20. Nf1 {[%emt 0:06:38]} Qd7 {[%emt 0:03:04]} 21. Nh2 {[%emt 0:02:47]} Qd6 {[%emt 0:03:45]} 22. Nf3 {[%emt 0:02:39]} Rf7 {[%emt 0:00:42]} 23. a4 {[%emt 0:02:45]} Nh7 {[%emt 0:02:39]} 24. Rc1 {[%emt 0:08:33]} Nf8 {[%emt 0:00:05]} 25. g3 {[%emt 0:01:06]} Rfd7 {[%emt 0:02:35]} 26. Kg2 {[%emt 0:01:40]} c6 {[%emt 0:02:23]} 27. a5 {[%emt 0:01:05]} Ng6 {[%emt 0:00:35]} 28. Qc4 {[%emt 0:03:00]} Nh8 {[%emt 0:02:19]} 29. b4 {[%emt 0:03:03]} Nf7 {[%emt 0:00:04]} 30. h4 {[%emt 0:00:40]} g6 {[%emt 0:00:26]} 31. h5 {[%emt 0:01:31]} g5 {[%emt 0:00:26]} 32. Nh2 {[%emt 0:00:10]} Kg7 {[%emt 0:00:43]} 33. Ng4 {[%emt 0:00:32]} Rf8 {[%emt 0:00:23]} 34. Rf3 {[%emt 0:00:48]} Qe7 {[%emt 0:01:43]} 35. Qc5 {[%emt 0:02:44]} Qxc5 {[%emt 0:00:16]} 36. bxc5 {[%emt 0:00:05]} Rd2 {[%emt 0:00:48]} 37. Rf6 {[%emt 0:00:57]} Re8 {[%emt 0:00:45]} 38. Rg6+ {[%emt 0:01:19]} Kh8 {[%emt 0:00:36]} 39. Rb1 {[%emt 0:01:07]} Rb8 {[%emt 0:00:25]} 40. Rxe6 {[%emt 0:00:52]} 1-0

[Event "CZE Extraliga 2019-20"]
[Site "Czech Republic"]
[Date "2019.11.30"]
[Round "3.3"]
[White "Yemelin, Vasily"]
[Black "Stocek, Jiri"]
[Result "0-1"]
[ECO "B72"]
[WhiteElo "2545"]
[BlackElo "2569"]
[Annotator "ChessBase"]
[PlyCount "70"]
[EventDate "2019.09.15"]
[EventType "team-tourn"]
[EventCountry "CZE"]
[SourceTitle "playchess.com"]
[Source "ChessBase"]
[SourceQuality "1"]
[WhiteTeam "Lysa nad Labem"]
[BlackTeam "Brno"]
[TimeControl "40/5400+30:1800+30"]

1. e4 {[%emt 0:00:00]} c5 {[%emt 0:00:51]} 2. Nf3 {[%emt 0:00:00]} d6 {[%emt 0:00:26]} 3. d4 {[%emt 0:00:42]} cxd4 {[%emt 0:00:23]} 4. Nxd4 {[%emt 0:00:05]} Nf6 {[%emt 0:00:21]} 5. Nc3 {[%emt 0:00:04]} a6 {[%emt 0:01:07]} 6. Bd3 {[%emt 0:07:20]} g6 {[%emt 0:03:58]} 7. Be3 {[%emt 0:00:41]} Bg7 {[%emt 0:09:09]} 8. f3 {[%emt 0:00:50]} Nbd7 {[%emt 0:13:01]} 9. Qd2 {[%emt 0:05:06]} b5 {[%emt 0:07:37]} 10. a4 {[%emt 0:15:52]} bxa4 {[%emt 0:02:49]} 11. Nxa4 {[%emt 0:00:32]} d5 {[%emt 0:06:14]} 12. exd5 {[%emt 0:18:43]} Nxd5 {[%emt 0:01:00]} 13. Bf2 {[%emt 0:15:59]} Bb7 {[%emt 0:13:20]} 14. O-O {[%emt 0:02:59]} O-O {[%emt 0:02:05]} 15. c4 {[%emt 0:05:32]} Bxd4 {[%emt 0:14:02]} 16. Bxd4 {[%emt 0:01:28]} e5 {[%emt 0:00:06]} 17. cxd5 {[%emt 0:11:54]} exd4 {[%emt 0:00:13]} 18. Bc4 {[%emt 0:01:08]} Ne5 {[%emt 0:02:22]} 19. b3 {[%emt 0:00:21]} d3 {[%emt 0:06:46]} 20. f4 {[%emt 0:01:27]} Ng4 {[%emt 0:00:42]} 21. Qxd3 {[%emt 0:02:38]} Re8 {[%emt 0:00:30]} 22. h3 {[%emt 0:02:48]} Ne3 {[%emt 0:02:18]} 23. Rfe1 {[%emt 0:00:05]} Qf6 {[%emt 0:02:11]} 24. Nc5 {[%emt 0:02:53]} Qb2 {[%emt 0:04:23]} 25. Rxe3 {[%emt 0:02:04]} Qxa1+ {[%emt 0:00:12]} 26. Kh2 {[%emt 0:00:01]} Qc1 {[%emt 0:01:41]} 27. Rf3 {[%emt 0:01:36]} Re1 {[%emt 0:02:29]} 28. Nxb7 {[%emt 0:00:20]} Rh1+ {[%emt 0:00:18]} 29. Kg3 {[%emt 0:00:04]} Qe1+ {[%emt 0:00:12]} 30. Rf2 {[%emt 0:01:10]} Re8 {[%emt 0:01:03]} 31. Kf3 {[%emt 0:00:03]} Qb4 {[%emt 0:00:33]} 32. Re2 {[%emt 0:01:01]} Rxe2 {[%emt 0:00:32]} 33. Qxe2 {[%emt 0:00:02]} Re1 {[%emt 0:00:31]} 34. Qf2 {[%emt 0:00:38]} Qc3+ {[%emt 0:00:36]} 35. Kg4 {[%emt 0:00:33]} h5+ {[%emt 0:00:54]} 0-1